bitfinex/quotes_ETHUSD_20241104
["timestamp","ask_amount","ask_price","bid_price","bid_amount"]
[1730723305676,4.03754,2476.8,2476.6,0.21040328]
[1730723305874,4.03779,2476.6,2476.5,0.21051655]
[1730723306174,4.03779,2476.6,2475.9,4.45965337]
[1730723306175,4.03828,2476.3,2476.2,0.21056749]
[1730723306487,4.03867,2476.1,2475.6,4.03929]
[1730723306778,4.03867,2476.1,2475.7,0.21072654]
[1730723306990,4.03867,2476.1,2475.8,0.21072654]
[1730723307143,4.03847,2476.2,2475.6,0.33712566]
[1730723307494,4.03847,2476.2,2475.7,0.21078415]
[1730723307495,4.80108,2476.0,2475.7,0.21078415]
[1730723307636,4.03917,2475.8,2475.6,0.2107981]
[1730723307837,4.03917,2475.8,2475.5,0.7904]
[1730723308038,4.03917,2475.8,2475.6,0.21081444]
[1730723308237,4.03917,2475.8,2475.5,0.7904]
[1730723308553,4.03917,2475.8,2475.3,4.79908]
[1730723308760,4.03893,2475.9,2475.4,0.21083125]
[1730723308983,4.03893,2475.9,2475.1,0.7593]
[1730723308984,4.03958,2475.5,2475.3,0.21083125]
[1730723309290,4.03958,2475.5,2475.1,0.7593]
[1730723309441,4.03958,2475.5,2475.2,0.21088978]
[1730723309641,4.03937,2475.7,2475.1,0.7593]
[1730723309897,4.03937,2475.7,2475.2,8.80447403]
[1730723310045,4.03937,2475.7,2475.3,0.76076646]
[1730723310246,4.03937,2475.7,2475.3,0.55]
[1730723310455,4.03937,2475.7,2475.3,0.76065528]
[1730723310998,4.0391,2475.8,2475.3,4.80056528]
[1730723311291,4.80099,2476.0,2475.3,0.55]
[1730723311447,4.80099,2476.0,2475.5,0.55]
[1730723311448,4.03901,2475.9,2475.5,0.55]
[1730723312071,4.0391,2475.8,2475.3,4.58989]
[1730723312631,4.03893,2475.9,2475.4,4.03973]
[1730723312908,4.80099,2476.0,2475.3,0.55]
[1730723313069,4.03893,2475.9,2475.3,4.8004173]
[1730723313270,4.80099,2476.0,2475.3,4.5899]
[1730723313271,4.0391,2475.8,2475.3,4.5899]
[1730723314206,4.03927,2475.7,2475.3,0.55]
[1730723314773,8.0783,2475.8,2475.3,0.55]
[1730723314974,4.0391,2475.8,2475.3,0.55]
[1730723315174,8.0783,2475.8,2475.3,0.55]
[1730723315900,4.03934,2475.7,2475.3,0.55]
[1730723316419,4.03934,2475.7,2475.2,4.03998]
[1730723316420,4.847184,2475.7,2475.1,3.7593]
[1730723316577,4.03954,2475.6,2475.1,3.7593]
[1730723316776,4.03934,2475.7,2475.1,3.7593]
[1730723317098,4.0396,2475.5,2475.1,3.7593]
[1730723317304,4.0398,2475.4,2475.1,0.7593]
[1730723317611,0.7716,2475.5,2475.1,0.7593]
[1730723317816,0.7716,2475.5,2474.8,3.0]
[1730723317817,4.04006,2475.3,2474.9,0.21031717]
[1730723317975,4.04015,2475.2,2474.9,0.21031717]
[1730723318515,0.7716,2475.5,2474.8,3.8129]
[1730723318516,4.04032,2475.1,2474.8,0.8129]
[1730723318875,4.04101,2474.7,2474.3,0.825]
[1730723319075,4.04123,2474.5,2474.3,0.825]
[1730723319280,4.525601,2474.7,2474.3,0.825]
[1730723319281,4.04106,2474.6,2474.3,0.825]
[1730723319999,4.04101,2474.7,2474.3,0.825]
[1730723320638,4.04097,2474.7,2474.4,0.55]
[1730723321193,4.04057,2474.9,2474.4,4.59132]
[1730723321737,4.04042,2475.0,2474.6,0.55]
[1730723321941,4.04058,2474.9,2474.6,0.55]
[1730723322228,4.04058,2474.9,2474.4,7.64312741]
[1730723322229,4.04058,2474.9,2474.4,0.55]
[1730723322438,4.04086,2474.8,2474.4,0.55]
[1730723322737,4.84919,2475.2,2474.4,0.55]
[1730723322738,4.04043,2475.0,2474.6,0.55]
[1730723322892,4.04043,2475.0,2474.5,3.0]
[1730723323095,4.04043,2475.0,2474.6,0.55]
[1730723325320,4.04059,2474.9,2474.6,0.55]
[1730723325639,0.484919,2475.1,2474.5,3.0]
[1730723325793,0.8091,2475.2,2474.5,0.55]
[1730723325794,4.04067,2474.9,2474.5,0.55]
[1730723326200,4.04075,2474.8,2474.5,0.55]
[1730723326395,8.08048,2475.1,2474.5,0.55]
[1730723326641,4.04066,2474.9,2474.5,0.55]
[1730723329116,4.04028,2475.1,2474.5,1.77330156]
[1730723329314,4.04028,2475.1,2474.6,0.8305]
[1730723329315,4.04024,2475.1,2474.6,0.8305]
[1730723329505,4.0404,2475.0,2474.6,0.8305]
[1730723331031,4.0404,2475.0,2474.6,4.87153]
[1730723331204,4.0404,2475.0,2474.7,0.891274]
[1730723331406,4.0404,2475.0,2474.6,4.87153]
[1730723331632,4.8492,2475.2,2474.7,4.59087]
[1730723331839,4.04035,2475.1,2474.7,0.55]
[1730723332451,4.04035,2475.1,2474.8,0.21028621]
[1730723332611,4.04035,2475.1,2474.7,0.55]
[1730723332808,4.04035,2475.1,2474.8,0.21029258]
[1730723333008,4.04035,2475.1,2474.7,0.55]
[1730723333210,4.04035,2475.1,2474.8,0.21028269]
[1730723333410,4.04035,2475.1,2474.7,4.59086]
[1730723333648,4.04035,2475.1,2474.8,0.21047996]
[1730723333947,4.04035,2475.1,2474.9,0.21047996]
[1730723334114,0.7758,2475.4,2474.9,0.55]
[1730723334115,4.04001,2475.3,2474.9,0.55]
[1730723334314,8.08002,2475.3,2475.0,1.01388717]
[1730723334514,8.08002,2475.3,2475.1,0.21048717]
[1730723334737,4.04007,2475.2,2475.0,0.8034]
[1730723334950,8.08,2475.3,2475.1,0.21073031]
[1730723335134,4.04007,2475.2,2475.0,0.8034]
[1730723335335,4.04007,2475.2,2475.1,0.21071645]
[1730723336313,4.925656,2475.2,2475.1,0.21071645]
[1730723338636,4.875656,2475.2,2475.1,0.21071645]
[1730723338952,3.99007,2475.2,2475.1,0.21071645]
[1730723340824,3.99007,2475.2,2475.1,0.54846419]
[1730723341376,3.99007,2475.2,2475.1,0.54854917]
[1730723341520,4.04031,2475.1,2474.6,7.85982]
[1730723341720,4.04031,2475.1,2474.7,0.97237246]
[1730723341952,3.99007,2475.2,2474.8,0.97141186]
[1730723342274,4.04026,2475.1,2474.9,0.97141186]
[1730723342419,3.99007,2475.2,2475.0,0.5490394]
[1730723342759,3.99007,2475.2,2475.1,0.5490394]
[1730723343319,4.03991,2475.3,2475.1,0.5490394]
[1730723343621,4.03991,2475.3,2475.2,0.5490394]
[1730723345459,4.847876,2475.3,2475.2,0.5490394]
[1730723345827,4.03991,2475.3,2475.2,0.5490394]
[1730723345977,4.03991,2475.3,2475.2,0.97200016]
[1730723349638,4.85401,2475.3,2475.2,0.97200016]
[1730723350181,4.85401,2475.3,2475.2,0.5490394]
[1730723350546,4.85401,2475.3,2475.2,0.97272812]
[1730723351764,4.03991,2475.3,2475.2,0.5490394]
[1730723352135,4.03991,2475.3,2474.9,0.55]
[1730723352476,4.04009,2475.2,2475.0,0.55080288]
[1730723352683,4.04009,2475.2,2475.1,0.55080288]
[1730723354253,4.03991,2475.3,2475.1,0.55080288]
[1730723354538,4.03991,2475.3,2475.2,1.34580288]
[1730723355240,4.03976,2475.4,2475.2,1.34580288]
[1730723355440,4.03976,2475.4,2475.3,0.55080288]
[1730723355973,4.03962,2475.5,2475.3,0.55080288]
[1730723356158,4.03927,2475.7,2475.4,0.55080288]
[1730723356361,4.03927,2475.7,2475.5,1.10080288]
[1730723356678,4.03927,2475.7,2475.6,0.55080288]
[1730723357660,4.03926,2475.7,2475.6,0.55080288]
[1730723358358,4.03926,2475.7,2475.6,0.21183958]
[1730723359179,4.03949,2475.6,2475.3,0.55]
[1730723359385,4.03949,2475.6,2475.5,0.55]
[1730723359684,4.03949,2475.6,2475.5,0.76158898]
[1730723362353,4.03949,2475.6,2475.2,0.795]
[1730723362354,4.03946,2475.6,2475.2,0.795]
[1730723362555,4.03975,2475.4,2475.3,0.21153357]
[1730723363296,4.03975,2475.4,2475.0,0.8194]
[1730723363495,4.03998,2475.3,2475.1,0.21156039]
[1730723363790,4.03998,2475.3,2475.2,0.21156039]
[1730723365182,4.03958,2475.5,2475.2,0.21156039]
[1730723365426,4.03982,2475.4,2475.1,0.55]
[1730723365582,4.03982,2475.4,2475.2,0.21155877]
[1730723365780,4.03982,2475.4,2475.1,0.55]
[1730723366031,4.03982,2475.4,2475.2,0.21156075]
[1730723366184,4.03982,2475.4,2475.1,0.55]
[1730723366386,4.03982,2475.4,2475.3,0.55]
[1730723366683,4.03933,2475.7,2475.4,0.7564]
[1730723366882,4.03942,2475.6,2475.5,0.55]
[1730723367317,4.03927,2475.7,2475.5,0.55]
[1730723367524,4.03908,2475.9,2475.5,0.55]
[1730723367525,4.03917,2475.8,2475.5,0.55]
[1730723368020,4.03928,2475.7,2475.6,0.21147999]
[1730723368233,4.03928,2475.7,2475.5,0.55]
[1730723368383,4.79581,2476.0,2475.5,0.55]
[1730723368384,4.03909,2475.9,2475.5,0.55]
[1730723368721,4.03909,2475.9,2475.6,0.21146095]
[1730723368884,4.03909,2475.9,2475.5,4.58958]
[1730723369087,4.03909,2475.9,2475.6,0.21144978]
[1730723369286,4.03909,2475.9,2475.5,0.55]
[1730723369513,4.03909,2475.9,2475.6,0.21140543]
[1730723369514,4.03916,2475.8,2475.6,0.21140543]
[1730723369825,4.03916,2475.8,2475.5,0.55]
[1730723369982,4.03916,2475.8,2475.6,0.21140584]
[1730723370189,4.03916,2475.8,2475.5,0.55]
[1730723370384,4.03878,2476.0,2475.6,0.2113843]
[1730723370614,4.03868,2476.1,2475.8,0.55]
[1730723370837,1.49144106,2476.3,2476.1,0.55]
[1730723371225,1.49144106,2476.3,2476.0,0.55]
[1730723371610,1.49144106,2476.3,2476.2,1.3528]
[1730723371923,2.54339919,2477.0,2476.5,0.55]
[1730723372159,4.03693,2477.2,2476.7,0.55]
[1730723372336,4.03724,2477.0,2476.5,5.02321]
[1730723372499,4.03724,2477.0,2476.7,0.55]
[1730723372699,4.037,2477.1,2476.8,0.823]
[1730723372998,4.037,2477.1,2476.9,0.55]
[1730723373703,4.03649,2477.4,2476.9,4.58722]
[1730723374006,4.03649,2477.4,2476.9,8.62444]
[1730723374206,4.03649,2477.4,2476.9,4.58721]
[1730723374439,11.39628,2477.6,2477.1,4.5869]
[1730723374440,4.03628,2477.6,2477.1,4.5869]
[1730723374640,4.03628,2477.6,2477.3,0.55]
[1730723374807,4.03625,2477.6,2477.3,0.55]
[1730723375148,4.03632,2477.5,2477.3,0.55]
[1730723376038,4.03648,2477.4,2477.3,0.55]
[1730723376396,4.03666,2477.3,2477.0,0.8132]
[1730723376600,4.03666,2477.3,2477.1,0.55]
[1730723376809,4.03665,2477.3,2477.1,0.55]
[1730723377437,4.03665,2477.3,2477.0,0.8132]
[1730723377438,4.03681,2477.2,2477.0,0.8132]
[1730723378039,4.440315,2477.3,2477.0,0.8132]
[1730723378243,8.477055,2477.3,2477.0,0.8132]
[1730723378740,4.03683,2477.2,2477.0,0.8132]
[1730723379714,4.03681,2477.2,2477.0,0.8132]
[1730723382603,4.03697,2477.1,2477.0,0.8132]
[1730723382829,4.03697,2477.1,2477.0,0.55]
[1730723383039,4.03715,2477.0,2476.8,0.55]
[1730723383928,8.0744,2477.0,2476.8,0.55]
[1730723384242,4.03715,2477.0,2476.7,0.7998]
[1730723384620,8.07441,2477.0,2476.7,0.7998]
[1730723385010,4.03715,2477.0,2476.7,0.7998]
[1730723385655,4.03705,2477.1,2476.8,0.55]
[1730723385946,4.0376,2476.8,2476.5,0.8219]
[1730723386147,4.03779,2476.6,2476.3,0.8246]
[1730723387420,4.03779,2476.6,2476.4,0.55]
[1730723387621,4.441569,2476.6,2476.3,0.8246]
[1730723387868,4.03811,2476.4,2476.0,0.7868]
[1730723388020,4.03811,2476.4,2476.0,4.82554]
[1730723388221,4.03798,2476.5,2476.0,4.82554]
[1730723388417,4.03814,2476.4,2476.0,0.7868]
[1730723388877,4.03814,2476.4,2476.0,3.7868]
[1730723389218,4.03814,2476.4,2476.1,0.55]
[1730723391794,4.03798,2476.5,2476.1,0.55]
[1730723392361,4.03798,2476.5,2476.1,4.58859]
[1730723392559,4.03771,2476.7,2476.2,0.7697]
[1730723392793,4.03771,2476.7,2476.3,0.55]
[1730723393182,4.03796,2476.5,2476.3,0.55]
[1730723395195,0.7519,2476.8,2476.2,0.7697]
[1730723395196,4.03783,2476.6,2476.2,0.7697]
[1730723395509,4.441753,2476.5,2476.2,0.7697]
[1730723395799,4.03797,2476.5,2476.2,0.7697]
[1730723396887,4.03733,2476.9,2476.2,0.7697]
[1730723396888,8.0746,2476.9,2476.3,4.58827]
[1730723397113,4.03765,2476.7,2476.3,4.58827]
[1730723398323,4.03765,2476.7,2476.5,0.55]
[1730723398711,4.03765,2476.7,2476.4,0.55]
[1730723399030,4.03762,2476.8,2476.4,0.55]
[1730723399031,4.0375,2476.8,2476.5,0.97303434]
[1730723399247,4.0375,2476.8,2476.5,0.7623]
[1730723399532,4.0375,2476.8,2476.6,0.21081486]
[1730723399712,4.0375,2476.8,2476.6,0.55]
[1730723400307,4.0375,2476.8,2476.7,0.21097799]
[1730723400517,4.03732,2476.9,2476.7,0.21097799]
[1730723400714,4.03682,2477.2,2476.8,1.03435603]
[1730723400918,4.8216,2477.3,2476.9,0.76095603]
[1730723400919,4.03678,2477.3,2476.9,0.76095603]
[1730723401115,4.82126,2477.5,2476.7,4.03762]
[1730723401116,4.03646,2477.5,2477.1,0.55]
[1730723401445,4.03646,2477.5,2477.3,0.55]
[1730723401610,4.843695,2477.5,2477.3,0.55]
[1730723401813,4.03689,2477.2,2477.0,0.7753]
[1730723402025,4.03689,2477.2,2477.1,0.76093682]
[1730723402253,4.03669,2477.3,2477.1,0.76093682]
[1730723402550,4.03669,2477.3,2477.1,0.55]
[1730723402698,4.03681,2477.2,2477.1,0.55]
[1730723402901,4.03681,2477.2,2477.1,0.76090792]
[1730723403342,4.03669,2477.3,2477.1,0.76090792]
[1730723403644,4.03681,2477.2,2477.1,0.55]
[1730723403803,4.03681,2477.2,2477.1,0.76087065]
[1730723403998,4.03681,2477.2,2477.1,0.21087065]
[1730723404199,4.03715,2477.0,2476.9,0.55]
[1730723404429,4.03715,2477.0,2476.9,1.09831659]
[1730723404820,4.03715,2477.0,2476.9,1.09821]
[1730723405016,4.03715,2477.0,2476.9,0.76084236]
[1730723405245,4.03715,2477.0,2476.9,1.09827478]
[1730723405832,4.03715,2477.0,2476.9,0.54827478]
[1730723406048,4.844565,2477.0,2476.9,0.21084236]
[1730723407265,4.03774,2476.7,2476.4,0.55]
[1730723407567,4.03751,2476.8,2476.6,0.55]
[1730723407741,4.03751,2476.8,2476.7,0.21098791]
[1730723408432,4.03733,2476.9,2476.7,0.21097393]
[1730723408644,4.03733,2476.9,2476.8,0.21097393]
[1730723409966,4.03728,2477.0,2476.8,0.76097393]
[1730723410120,4.03683,2477.2,2476.9,1.09848356]
[1730723410458,4.03682,2477.2,2477.1,0.55]
[1730723411265,4.03682,2477.2,2477.1,0.76092362]
[1730723411420,4.03682,2477.2,2476.8,0.88753842]
[1730723411625,4.03704,2477.1,2476.9,0.21093892]
[1730723411826,4.03704,2477.1,2477.0,0.21093892]
[1730723413171,4.03704,2477.1,2476.8,0.55]
[1730723413172,4.03715,2477.0,2476.8,0.55]
[1730723413329,4.03715,2477.0,2476.9,0.76097272]
[1730723414372,4.03715,2477.0,2476.9,0.21097272]
[1730723414543,5.605369,2477.0,2476.9,0.21097272]
[1730723414861,4.03747,2476.8,2476.6,0.88759977]
[1730723415163,4.03747,2476.8,2476.7,0.21100584]
[1730723415881,4.03711,2477.1,2476.8,0.55]
[1730723416161,4.0373,2476.9,2476.8,0.55]
[1730723416366,4.0373,2476.9,2476.8,0.76098469]
[1730723418379,4.0373,2476.9,2476.8,0.21098469]
[1730723418586,4.0373,2476.9,2476.4,0.33766223]
[1730723418587,4.03795,2476.5,2476.4,0.33766223]
[1730723418868,4.03795,2476.5,2476.4,0.21107152]
[1730723419544,0.816,2476.6,2476.4,0.21107152]
[1730723419730,4.03821,2476.4,2476.1,0.7687]
[1730723419930,4.03795,2476.5,2476.2,0.54906427]
[1730723420172,4.03782,2476.6,2476.3,0.21117091]
[1730723420473,4.03782,2476.6,2476.4,0.21117091]
[1730723420769,4.03782,2476.6,2476.2,0.55]
[1730723420953,4.03805,2476.5,2476.4,0.55]
[1730723421664,4.03805,2476.5,2476.1,0.7687]
[1730723421865,4.0382,2476.4,2476.2,0.55]
[1730723422071,4.0382,2476.4,2476.3,0.76129247]
[1730723422268,4.03805,2476.5,2476.3,0.76129247]
[1730723422432,4.03781,2476.6,2476.4,0.55]
[1730723422639,4.03795,2476.5,2476.2,0.55]
[1730723422847,4.03795,2476.5,2476.4,0.55]
[1730723423480,4.03795,2476.5,2476.2,0.55]
[1730723423674,4.03795,2476.5,2476.4,0.55]
[1730723424171,4.03782,2476.6,2476.2,0.55]
[1730723424474,4.03782,2476.6,2476.4,0.55]
[1730723424637,4.03782,2476.6,2476.3,0.55]
[1730723424986,4.03782,2476.6,2476.4,0.21120396]
[1730723425190,4.03755,2476.8,2476.5,0.55]
[1730723425498,4.03739,2476.9,2476.5,0.55]
[1730723425499,4.03744,2476.9,2476.5,0.55]
[1730723425785,4.03744,2476.9,2476.5,1.090944]
[1730723426488,4.03744,2476.9,2476.7,0.55]
[1730723426651,4.03744,2476.9,2476.6,0.55]
[1730723426995,4.03744,2476.9,2476.7,0.21117029]
[1730723427295,4.03699,2477.1,2476.6,4.58772]
[1730723427296,4.03721,2477.0,2476.6,4.58772]
[1730723427495,4.03699,2477.1,2476.8,1.3175]
[1730723427688,0.8038,2477.3,2476.8,1.3175]
[1730723427855,4.03707,2477.1,2476.8,1.3175]
[1730723428787,4.03716,2477.0,2476.8,1.3175]
[1730723429088,4.037,2477.1,2476.8,1.3175]
[1730723429653,4.037,2477.1,2476.9,0.21111987]
[1730723429852,4.037,2477.1,2476.8,1.3175]
[1730723430176,4.03714,2477.0,2476.9,0.21110961]
[1730723430491,2.11649894,2477.4,2476.9,0.76110961]
[1730723430657,4.03714,2477.0,2476.9,0.55]
[1730723430855,4.03675,2477.3,2477.0,0.55]
[1730723431080,4.03692,2477.2,2477.0,0.55]
[1730723431283,4.03697,2477.1,2476.9,0.55]
[1730723431786,4.03714,2477.0,2476.7,0.55]
[1730723431973,4.03722,2477.0,2476.9,0.55]
[1730723432514,4.03722,2477.0,2476.7,0.88780004]
[1730723432789,4.03722,2477.0,2476.6,3.818]
[1730723432790,4.03722,2477.0,2476.9,0.55]
[1730723432955,4.03722,2477.0,2476.9,0.76111075]
[1730723433157,4.03722,2477.0,2476.9,0.55]
[1730723433385,4.03722,2477.0,2476.7,0.55]
[1730723433583,4.03722,2477.0,2476.8,0.76110012]
[1730723433584,4.03731,2476.9,2476.8,0.76110012]
[1730723434560,4.03731,2476.9,2476.8,0.21110012]
[1730723434760,4.03731,2476.9,2476.5,0.88775526]
[1730723434761,4.03779,2476.6,2476.5,0.88775526]
[1730723434956,4.03748,2476.8,2476.5,0.76110015]
[1730723435175,4.03748,2476.8,2476.6,0.21110015]
[1730723435502,4.03748,2476.8,2476.5,0.55]
[1730723435658,8.0751,2476.8,2476.5,0.55]
[1730723435859,8.0751,2476.8,2476.6,0.21112246]
[1730723435860,4.03748,2476.8,2476.6,0.21112246]
[1730723436059,8.07504,2476.8,2476.5,0.55]
[1730723436302,4.03748,2476.8,2476.6,0.21112385]
[1730723436498,8.07504,2476.8,2476.5,0.55]
[1730723436707,4.03748,2476.8,2476.6,0.21113064]
[1730723436998,4.03748,2476.8,2476.5,0.55]
[1730723437174,4.03748,2476.8,2476.6,0.21114138]
[1730723437371,4.03722,2477.0,2476.8,0.55]
[1730723437576,4.03722,2477.0,2476.8,1.3508]
[1730723439108,4.03699,2477.1,2476.8,1.3508]
[1730723439897,4.0373,2476.9,2476.8,1.3508]
[1730723440096,4.03717,2477.0,2476.8,1.3508]
[1730723440571,4.03698,2477.1,2476.8,1.3508]
[1730723440572,4.03704,2477.1,2476.8,1.3508]
[1730723441277,4.03716,2477.0,2476.8,1.3508]
[1730723441921,4.0373,2476.9,2476.8,1.3508]
[1730723442063,4.0373,2476.9,2476.7,0.55]
[1730723442261,4.03765,2476.7,2476.3,0.7658]
[1730723442500,4.03796,2476.5,2476.4,0.33798888]
[1730723442670,4.03785,2476.6,2476.4,0.21123061]
[1730723442872,4.03785,2476.6,2476.5,0.21123061]
[1730723443208,4.03763,2476.7,2476.5,0.21123061]
[1730723443209,4.03764,2476.7,2476.5,0.21125656]
[1730723443405,4.03764,2476.7,2476.3,4.80403]
[1730723443727,4.03753,2476.8,2476.4,5.47153616]
[1730723443903,4.03753,2476.8,2476.5,0.76123679]
[1730723444077,4.03753,2476.8,2476.7,0.55]
[1730723444668,4.03784,2476.6,2476.5,0.55]
[1730723444911,4.03784,2476.6,2476.5,0.21125543]
[1730723445266,4.03784,2476.6,2476.5,0.76125543]
[1730723446715,0.794,2476.9,2476.5,0.76125543]
[1730723446915,4.03765,2476.7,2476.6,0.21125543]
[1730723447683,4.03746,2476.8,2476.7,0.55]
[1730723447926,4.03746,2476.8,2476.7,0.76119896]
[1730723448620,4.03746,2476.8,2476.4,4.03809]
[1730723448786,4.03746,2476.8,2476.5,1.0991147]
[1730723448985,4.03746,2476.8,2476.6,0.21118831]
[1730723449325,4.03717,2477.0,2476.7,0.21118831]
[1730723449534,2.11799638,2477.2,2476.8,0.55]
[1730723449680,4.0369,2477.2,2476.9,0.21120103]
[1730723450017,4.03698,2477.1,2477.0,0.21112488]
[1730723450519,4.03688,2477.2,2476.8,0.55]
[1730723450682,4.03688,2477.2,2476.9,0.21111698]
[1730723450889,4.03688,2477.2,2477.0,0.21111698]
[1730723451090,4.03688,2477.2,2476.8,4.58743]
[1730723451314,4.03688,2477.2,2477.0,0.55]
[1730723451616,4.03688,2477.2,2476.9,0.21111645]
[1730723451617,4.03688,2477.2,2476.8,5.28470877]
[1730723451822,4.03668,2477.3,2477.0,0.55]
[1730723452123,4.03668,2477.3,2477.1,1.00142302]
[1730723452285,4.03668,2477.3,2477.1,0.7903]
[1730723452708,4.03681,2477.2,2477.1,0.7903]
[1730723453029,4.03668,2477.3,2477.1,1.00142923]
[1730723453209,4.03668,2477.3,2477.1,0.7903]
[1730723453721,4.03681,2477.2,2477.1,0.7903]
[1730723453922,8.07372,2477.2,2476.9,0.55]
[1730723454085,8.0737,2477.2,2477.0,0.21116837]
[1730723454290,8.0737,2477.2,2476.9,0.55]
[1730723454516,4.03681,2477.2,2477.0,0.21119751]
[1730723454722,4.03697,2477.1,2477.0,0.55]
[1730723455043,4.03684,2477.2,2477.0,0.76120473]
[1730723455202,4.03684,2477.2,2476.9,0.55]
[1730723455402,4.03684,2477.2,2477.0,0.21118779]
[1730723455716,4.03684,2477.2,2476.9,0.55]
[1730723455904,4.03684,2477.2,2477.0,0.21119795]
[1730723456101,4.03697,2477.1,2477.0,0.55]
[1730723456301,4.03697,2477.1,2477.0,0.76120536]
[1730723457596,4.03684,2477.2,2477.0,0.76120536]
[1730723457801,4.03684,2477.2,2477.0,0.55]
[1730723457997,4.03684,2477.2,2476.9,0.55]
[1730723458198,4.03684,2477.2,2477.0,0.21118668]
[1730723458397,4.03684,2477.2,2476.9,0.55]
[1730723458636,4.03684,2477.2,2477.0,0.21118065]
[1730723458804,4.03684,2477.2,2476.9,0.55]
[1730723459005,4.03684,2477.2,2477.0,0.21118372]
[1730723459219,8.07376,2477.2,2476.9,0.55]
[1730723459419,4.03697,2477.1,2477.0,0.21120212]
[1730723459752,4.03697,2477.1,2477.0,0.76119563]
[1730723459964,4.03684,2477.2,2477.0,0.76119563]
[1730723460244,4.03684,2477.2,2476.9,0.55]
[1730723460438,6.15415966,2477.4,2477.0,0.21117766]
[1730723460439,4.03673,2477.3,2477.0,0.21117766]
[1730723460644,4.03673,2477.3,2477.1,0.21117766]
[1730723460828,2.11735577,2477.6,2477.3,0.55]
[1730723461015,4.03617,2477.6,2477.3,0.55]
[1730723461441,6.15337577,2477.7,2477.3,0.55]
[1730723461744,4.03602,2477.7,2477.4,0.21102306]
[1730723461908,4.03602,2477.7,2477.3,4.58653]
[1730723462105,4.03602,2477.7,2477.4,0.2109972]
[1730723462311,4.03602,2477.7,2477.3,4.58653]
[1730723462516,4.03602,2477.7,2477.3,5.48463384]
[1730723462856,4.03602,2477.7,2477.4,0.21093286]
[1730723463023,4.03602,2477.7,2477.3,5.48463384]
[1730723463556,6.91845577,2477.9,2477.3,5.48471384]
[1730723463853,4.03601,2477.7,2477.4,0.21087989]
[1730723464048,4.03601,2477.7,2477.3,5.48471384]
[1730723464255,4.03601,2477.7,2477.4,0.21087089]
[1730723464417,4.03601,2477.7,2477.3,5.48471384]
[1730723464728,4.0359,2477.8,2477.5,1.3636]
[1730723465461,6.15127554,2478.0,2477.5,1.3636]
[1730723465462,2.11561554,2478.0,2477.5,6.38325193]
[1730723465670,10.98689554,2478.1,2477.7,0.55]
[1730723465822,4.83585,2478.1,2477.7,0.55]
[1730723466022,4.83585,2478.1,2477.7,4.58599]
[1730723466636,4.03525,2478.2,2477.9,1.3671]
[1730723466938,2.1144707,2478.5,2477.9,1.3671]
[1730723466939,8.0709,2478.1,2477.9,1.3671]
[1730723467254,8.0709,2478.1,2477.6,3.0]
[1730723467255,4.0358,2477.9,2477.6,3.0]
[1730723467561,4.03613,2477.7,2477.2,7.03674]
[1730723467872,4.03613,2477.7,2477.3,0.21053292]
[1730723467873,4.03648,2477.4,2477.3,0.21053292]
[1730723468070,4.03669,2477.3,2477.1,0.8171]
[1730723468368,4.03648,2477.4,2477.1,0.8171]
[1730723468369,4.03651,2477.4,2477.1,0.8171]
[1730723469560,4.03628,2477.6,2477.1,0.8171]
[1730723469765,4.03656,2477.4,2477.1,0.8171]
[1730723470131,4.03639,2477.5,2477.2,0.55]
[1730723470330,4.0365,2477.4,2477.2,0.55]
[1730723470665,4.03648,2477.4,2477.2,0.55]
[1730723471024,4.03693,2477.2,2477.0,0.55]
[1730723471325,0.7925,2477.3,2476.8,0.33688087]
[1730723471525,4.0373,2476.9,2476.7,1.16806572]
[1730723471861,4.0373,2476.9,2476.8,0.21058601]
[1730723472265,4.03715,2477.0,2476.8,0.21058601]
[1730723472481,4.0373,2476.9,2476.7,0.8311]
[1730723472630,4.03732,2476.9,2476.5,1.09546572]
[1730723472832,4.03732,2476.9,2476.6,0.21062752]
[1730723473148,4.03747,2476.8,2476.7,0.21062752]
[1730723473340,4.03712,2477.1,2476.7,0.21062752]
[1730723473558,2.86832327,2477.5,2476.8,0.7585]
[1730723473741,2.53766793,2477.7,2477.3,4.03656]
[1730723473742,4.03601,2477.7,2477.3,4.03656]
[1730723474124,4.03601,2477.7,2477.4,0.8074]
[1730723474327,4.7893,2477.9,2477.4,0.8074]
[1730723474328,4.03587,2477.8,2477.4,0.8074]
[1730723474568,2.11472327,2478.0,2477.5,4.5862]
[1730723474569,4.03558,2478.0,2477.5,4.5862]
[1730723474870,4.03558,2478.0,2477.7,0.55]
[1730723475087,2.91552327,2478.2,2477.7,0.55]
[1730723475088,4.03535,2478.1,2477.7,0.55]
[1730723475230,4.83608,2478.2,2477.7,0.55]
[1730723475231,4.03528,2478.2,2477.7,4.58591]
[1730723475651,4.03528,2478.2,2477.9,0.55]
[1730723476162,4.03535,2478.1,2477.9,0.55]
[1730723476327,4.03551,2478.0,2477.9,0.55]
[1730723476527,4.03551,2478.0,2477.5,3.7569]
[1730723476767,0.807063,2478.1,2477.6,0.55]
[1730723476768,4.03571,2477.9,2477.6,0.55]
[1730723478501,4.03551,2478.0,2477.6,4.58614]
[1730723479651,4.03535,2478.1,2477.8,0.55]
[1730723480665,4.03527,2478.2,2477.8,0.55]
[1730723481069,4.03541,2478.1,2477.6,4.58604]
[1730723481255,4.03521,2478.2,2477.8,0.55]
[1730723481463,4.03521,2478.2,2477.9,0.7614]